fUST/lending_fUST_20250622
["ID","MTS","AMOUNT","RATE_DAILY","PERIOD"]
[366880841,1750545038377,-460.0,0.00022461,2]
[366880842,1750545038388,-225.85361635,0.00022461,2]
[366880843,1750545038398,-460.0,0.00022461,2]
[366880844,1750545038408,-460.0,0.00022461,2]
[366880845,1750545038418,-460.0,0.00022461,2]
[366880846,1750545038428,-460.0,0.00022462,2]
[366880847,1750545038437,-563.88,0.00022462,2]
[366880848,1750545038447,-430.0,0.00022462,2]
[366880849,1750545038457,-520.19,0.00022462,2]
[366880850,1750545038466,-460.0,0.00022462,2]
[366880851,1750545038476,-460.0,0.00022462,2]
[366880852,1750545038485,-460.0,0.00022462,2]
[366880853,1750545038495,-460.0,0.00022462,2]
[366880854,1750545038504,-460.0,0.00022462,2]
[366880855,1750545038514,-460.0,0.00022462,2]
[366880856,1750545038523,-460.0,0.00022462,2]
[366880857,1750545038534,-460.0,0.00022462,2]
[366880858,1750545038543,-230.10342898,0.00022466,2]
[366880859,1750545038553,-213.55395994,0.00022466,2]
[366880860,1750545038563,-160.0,0.00022466,2]
[366880861,1750545038572,-846.23824438,0.00022466,2]
[366880862,1750545038582,-160.0,0.00022466,2]
[366880863,1750545038591,-460.0,0.00022474,2]
[366880864,1750545038601,-427.97651497,0.00022474,2]
[366880865,1750545038610,-433.80887487,0.00022474,2]
[366880866,1750545038620,-460.0,0.00022475,2]
[366880867,1750545038629,-460.0,0.00022475,2]
[366880868,1750545038639,-460.0,0.00022475,2]
[366880869,1750545038648,-321.47956876,0.00022475,2]
[366880870,1750545038657,-415.08015109,0.00022475,2]
[366880871,1750545038670,-52.52984891,0.00022475,2]
[366880872,1750545038680,-404.52511996,0.00022475,2]
[366880873,1750545038689,-108.98503113,0.00022475,2]
[366880874,1750545038701,-351.01496887,0.00022475,2]
[366880875,1750545038711,-460.0,0.00022475,2]
[366880876,1750545038720,-460.0,0.00022475,2]
[366880877,1750545038729,-460.0,0.00022475,2]
[366880878,1750545038738,-460.0,0.00022475,2]
[366880879,1750545038747,-460.0,0.00022475,2]
[366880880,1750545038757,-460.0,0.00022475,2]
[366880881,1750545038766,-422.85,0.00022475,2]
[366880882,1750545038775,-500.0,0.00022475,2]
[366880883,1750545038784,-460.0,0.00022475,2]
[366880884,1750545038794,-460.0,0.00022475,2]
[366880885,1750545038803,-419.88726943,0.00022475,2]
[366880886,1750545038812,-460.0,0.00022475,2]
[366880887,1750545038821,-460.0,0.00022475,2]
[366880888,1750545038830,-460.0,0.00022475,2]
[366880889,1750545038840,-460.0,0.00022475,2]
[366880890,1750545038849,-464.72997473,0.00022475,2]
[366880891,1750545038858,-460.0,0.00022475,2]
[366880892,1750545038868,-601.32,0.00022475,2]
[366880893,1750545038878,-460.0,0.00022475,2]
[366880894,1750545038888,-436.14689588,0.00022475,2]
[366880895,1750545038898,-500.0,0.00022475,2]
[366880896,1750545038907,-500.0,0.00022475,2]
[366880897,1750545038917,-500.0,0.00022475,2]
[366880898,1750545038929,-500.0,0.00022475,2]
[366880899,1750545038938,-183.81526371,0.00022475,2]
[366880900,1750545038947,-500.0,0.00022475,2]
[366880901,1750545038956,-500.0,0.00022475,2]
[366880902,1750545038966,-500.0,0.00022475,2]
[366880903,1750545038975,-500.0,0.00022475,2]
[366880904,1750545038985,-296.29890711,0.00022476,2]
[366880905,1750545038994,-471.65194284,0.00022476,2]
[366880906,1750545039003,-541.5183753,0.00022476,2]
[366880907,1750545039012,-460.0,0.00022476,2]
[366880908,1750545039021,-460.0,0.00022476,2]
[366880909,1750545039031,-500.91539289,0.00022476,2]
[366880910,1750545039040,-460.0,0.00022476,2]
[366880911,1750545039049,-460.0,0.00022476,2]
[366880912,1750545039059,-460.0,0.00022476,2]
[366880913,1750545039068,-184.84815377,0.00022476,2]
[366880914,1750545039078,-460.0,0.00022476,2]
[366880915,1750545039087,-460.0,0.00022476,2]
[366880916,1750545039096,-460.0,0.00022476,2]
[366880917,1750545039106,-460.0,0.00022476,2]
[366880918,1750545039115,-460.0,0.00022476,2]
[366880919,1750545039124,-460.0,0.00022476,2]
[366880920,1750545039138,-460.0,0.00022476,2]
[366880921,1750545039147,-206.03851821,0.00022476,2]
[366880922,1750545039157,-547.0554037,0.00022476,2]
[366880923,1750545039166,-460.0,0.00022476,2]
[366880924,1750545039177,-460.0,0.00022476,2]
[366880925,1750545039187,-460.0,0.00022476,2]
[366880926,1750545039196,-500.0,0.00022476,2]
[366880927,1750545039208,-268.29050484,0.00022476,2]
[366880928,1750545039219,-329.41,0.00022476,2]
[366880929,1750545039229,-460.0,0.00022476,2]
[366880930,1750545039238,-460.0,0.00022476,2]
[366880931,1750545039247,-460.0,0.00022476,2]
[366880932,1750545039256,-460.0,0.00022476,2]
[366880933,1750545039266,-460.0,0.00022476,2]
[366880934,1750545039276,-460.0,0.00022476,2]
[366880935,1750545039286,-460.0,0.00022476,2]
[366880936,1750545039296,-413.69774017,0.00022476,2]
[366880937,1750545039305,-436.06055592,0.00022476,2]
[366880938,1750545039314,-460.0,0.00022476,2]
[366880939,1750545039323,-447.00879276,0.00022476,2]
[366880940,1750545039333,-460.0,0.00022476,2]
[366880941,1750545039342,-460.0,0.00022476,2]
[366880942,1750545039352,-460.0,0.00022476,2]
[366880943,1750545039361,-460.0,0.00022476,2]
[366880944,1750545039371,-460.0,0.00022476,2]
[366880945,1750545039380,-460.0,0.00022476,2]
[366880946,1750545039389,-523.49,0.00022476,2]
[366880947,1750545039399,-563.32927075,0.00022476,2]
[366880948,1750545039408,-460.0,0.00022476,2]
[366880949,1750545039417,-460.0,0.00022476,2]
[366880950,1750545039427,-460.0,0.00022476,2]
[366880951,1750545039436,-460.0,0.00022476,2]
[366880952,1750545039445,-460.0,0.00022476,2]
[366880953,1750545039454,-460.0,0.00022476,2]
[366880954,1750545039464,-151.0,0.00022476,2]
[366880955,1750545039473,-154.45200966,0.00022476,2]
[366880956,1750545039482,-154.37795966,0.00022476,2]
[366880957,1750545039492,-460.0,0.00022476,2]
[366880958,1750545039501,-460.0,0.00022476,2]
[366880959,1750545039510,-460.0,0.00022476,2]
[366880960,1750545039520,-469.02,0.00022476,2]
[366880961,1750545039529,-438.50483034,0.00022476,2]
[366880962,1750545039538,-460.0,0.00022476,2]
[366880963,1750545039548,-460.0,0.00022476,2]
[366880964,1750545039557,-460.0,0.00022476,2]
[366880965,1750545039567,-239.14999073,0.00022476,2]
[366880966,1750545039576,-460.0,0.00022476,2]
[366880967,1750545039585,-460.0,0.00022476,2]
[366880968,1750545039595,-460.0,0.00022476,2]
[366880969,1750545039604,-460.0,0.00022476,2]
[366880970,1750545039614,-460.0,0.00022476,2]
[366880971,1750545039623,-460.0,0.00022476,2]
[366880972,1750545039633,-440.0,0.00022476,2]
[366880973,1750545039642,-438.77755687,0.00022476,2]
[366880974,1750545039651,-460.0,0.00022476,2]
[366880975,1750545039662,-460.0,0.00022476,2]
[366880976,1750545039671,-460.0,0.00022476,2]
[366880977,1750545039681,-460.0,0.00022476,2]
[366880978,1750545039690,-460.0,0.00022476,2]
[366880979,1750545039699,-460.0,0.00022476,2]
[366880980,1750545039709,-460.0,0.00022476,2]
[366880981,1750545039719,-460.0,0.00022476,2]
[366880982,1750545039728,-430.92544149,0.00022476,2]
[366880983,1750545039737,-460.0,0.00022476,2]
[366880984,1750545039746,-460.0,0.00022476,2]
[366880985,1750545039755,-437.5960337,0.00022476,2]
[366880986,1750545039765,-460.0,0.00022476,2]
[366880987,1750545039774,-242.91747344,0.00022476,2]
[366880988,1750545039783,-460.0,0.00022476,2]
[366880989,1750545039792,-155.0,0.00022476,2]
[366880990,1750545039802,-460.0,0.00022476,2]
[366880991,1750545039811,-460.0,0.00022476,2]
[366880992,1750545039820,-423.10059052,0.00022476,2]
[366880993,1750545039829,-460.0,0.00022476,2]
[366880995,1750545039839,-460.0,0.00022476,2]
[366880997,1750545039848,-550.47,0.00022476,2]
[366880999,1750545039857,-460.0,0.00022476,2]
[366881000,1750545039867,-460.0,0.00022476,2]
[366881001,1750545039876,-460.0,0.00022476,2]
[366881002,1750545039886,-460.0,0.00022476,2]
[366881003,1750545039895,-460.0,0.00022476,2]
[366881004,1750545039904,-500.0,0.00022476,2]
[366881005,1750545039913,-160.07829289,0.00022476,2]
[366881006,1750545039922,-460.0,0.00022476,2]
[366881007,1750545039932,-460.0,0.00022476,2]
[366881008,1750545039941,-320.0,0.00022476,2]
[366881009,1750545039951,-442.01297547,0.00022476,2]
[366881010,1750545039960,-460.0,0.00022476,2]
[366881011,1750545039969,-359.15368191,0.00022476,2]
[366881012,1750545039978,-500.0,0.00022503,2]
[366881013,1750545039987,-500.0,0.00022531,2]
[366881014,1750545039996,-460.0,0.00022552,2]
[366881015,1750545040006,-460.0,0.00022552,2]
[366881016,1750545040015,-460.0,0.00022552,2]
[366881017,1750545040025,-563.88,0.00022552,2]
[366881018,1750545040035,-460.0,0.00022552,2]
[366881020,1750545040044,-460.0,0.00022552,2]
[366881022,1750545040055,-460.0,0.00022552,2]
[366881023,1750545040064,-434.21214271,0.00022553,2]
[366881024,1750545040073,-419.67653741,0.00022553,2]
[366881025,1750545040083,-460.0,0.00022553,2]
[366881026,1750545040092,-460.0,0.00022553,2]
[366881027,1750545040101,-449.90512391,0.00022553,2]
[366881028,1750545040111,-460.0,0.00022553,2]
[366881029,1750545040121,-460.0,0.00022553,2]
[366881030,1750545040141,-460.0,0.00022553,2]
[366881031,1750545040152,-406.0422759,0.00022553,2]
[366881032,1750545040162,-460.0,0.00022553,2]
[366881033,1750545040171,-460.0,0.00022553,2]
[366881034,1750545040182,-460.0,0.00022553,2]
[366881035,1750545040191,-400.0,0.00022554,2]
[366881036,1750545040200,-179.30849331,0.00022554,2]
[366881037,1750545040210,-513.84,0.00022554,2]
[366881038,1750545040219,-258.24,0.00022554,2]
[366881039,1750545040229,-460.0,0.00022554,2]
[366881040,1750545040238,-157.08,0.00022554,2]
[366881041,1750545040247,-460.0,0.00022554,2]
[366881042,1750545040256,-460.0,0.00022554,2]
[366881043,1750545040265,-467.61,0.00022554,2]
[366881044,1750545040275,-460.0,0.00022554,2]
[366881045,1750545040284,-460.0,0.00022554,2]
[366881046,1750545040295,-473.01,0.00022554,2]
[366881047,1750545040304,-519.87,0.00022554,2]
[366881049,1750545040313,-460.0,0.00022554,2]
[366881050,1750545040325,-500.0,0.00022554,2]
[366881051,1750545040335,-396.66,0.00022554,2]
[366881052,1750545040345,-500.0,0.00022558,2]
[366881053,1750545040355,-500.0,0.00022586,2]
[366881054,1750545040364,-168.0,0.00022601,2]
[366881055,1750545040374,-500.0,0.00022613,2]
[366881056,1750545040383,-500.0,0.0002264,2]
[366881057,1750545040392,-500.0,0.00022668,2]
[366881058,1750545040402,-500.0,0.00022695,2]
[366881059,1750545040411,-484.0,0.00022723,2]
[366881060,1750545040420,-500.0,0.00022899,7]
[366881061,1750545040431,-460.0,0.00022899,2]
[366881062,1750545040440,-460.0,0.00022899,2]
[366881063,1750545040449,-882.16404568,0.000229,8]
[366881064,1750545040459,-513.84,0.00022901,2]
[366881065,1750545040468,-460.0,0.00022901,2]
[366881066,1750545040478,-460.0,0.00022901,2]
[366881067,1750545040487,-460.0,0.00022901,2]
[366881068,1750545040498,-563.88,0.00022901,2]
[366881069,1750545040507,-467.61,0.00022901,2]
[366881070,1750545040516,-546.3,0.00022901,2]
[366881071,1750545040526,-460.0,0.00022901,2]
[366881072,1750545040536,-295.85,0.00022901,2]
[366881073,1750545040545,-460.0,0.00022901,2]
[366881074,1750545040555,-500.0,0.00022901,2]
[366881075,1750545040564,-460.0,0.00022901,2]
[366881077,1750545040574,-10216.1640935,0.00022902,2]
[366881079,1750545040583,-500.0,0.00022973,2]
[366881081,1750545040592,-500.0,0.00022973,2]
[366881089,1750545040686,-500.0,0.00022973,2]
[366881091,1750545040697,-500.0,0.00022973,2]
[366881093,1750545040706,-175.4486957,0.00022973,2]
[366881094,1750545040716,-500.0,0.00022973,2]
[366881096,1750545040725,-856.99,0.00022989,3]
[366881097,1750545040734,-665.78,0.00022989,3]
[366881099,1750545040743,-242.37,0.00022989,3]
[366881101,1750545040753,-727.13,0.00022989,3]
[366881102,1750545040762,-228.75,0.00022989,10]
[366881104,1750545040771,-190.62,0.00022989,10]
[366881105,1750545040780,-158.85,0.00022989,10]
[366881107,1750545040790,-571.3,0.0002299,3]
[366881108,1750545040799,-285.65,0.0002299,3]
[366881110,1750545040809,-513.84,0.00022998,2]
[366881111,1750545040818,-165.96,0.00022998,2]
[366881113,1750545040828,-181.18,0.00022998,2]
[366881115,1750545040837,-460.0,0.00022998,2]
[366881116,1750545040846,-467.61,0.00022998,2]
[366881118,1750545040855,-460.0,0.00022998,2]
[366881119,1750545040865,-500.0,0.00022998,2]
[366881121,1750545040874,-460.0,0.00022998,2]
[366881122,1750545040884,-460.0,0.00022998,2]
[366881124,1750545040893,-460.0,0.00022999,2]
[366881126,1750545040902,-460.0,0.00022999,2]
[366881128,1750545040912,-460.0,0.00022999,2]
[366881129,1750545040921,-460.0,0.00022999,2]
[366881131,1750545040931,-470.22106702,0.00022999,2]
[366881132,1750545040941,-460.0,0.00022999,2]
[366881134,1750545040950,-460.0,0.00022999,2]
[366881136,1750545040959,-460.0,0.00022999,2]
[366881137,1750545040969,-400.0,0.00022999,2]
[366881139,1750545040978,-460.0,0.00022999,2]
[366881141,1750545040988,-460.0,0.00022999,2]
[366881143,1750545040997,-460.0,0.00022999,2]
[366881144,1750545041006,-440.0,0.00022999,2]
[366881145,1750545041015,-460.0,0.00022999,2]
[366881147,1750545041025,-460.0,0.00022999,2]
[366881149,1750545041035,-162.58422905,0.00022999,2]
[366881150,1750545041044,-460.0,0.00022999,2]
[366881152,1750545041053,-460.0,0.00022999,2]
[366881154,1750545041062,-460.0,0.00022999,2]
[366881155,1750545041072,-460.0,0.00022999,2]
[366881157,1750545041081,-460.0,0.00022999,2]
[366881159,1750545041091,-507.67681305,0.00022999,2]
[366881160,1750545041100,-513.84,0.00022999,2]
[366881162,1750545041110,-513.84,0.00022999,2]
[366881164,1750545041119,-513.84,0.00022999,2]
[366881166,1750545041133,-220.0,0.00022999,2]
[366881167,1750545041142,-460.0,0.00022999,2]
[366881169,1750545041151,-430.0,0.00022999,2]
[366881170,1750545041161,-460.0,0.00022999,2]
[366881172,1750545041172,-460.0,0.00022999,2]
[366881174,1750545041182,-563.88,0.00022999,2]
[366881176,1750545041191,-460.0,0.00022999,2]
[366881177,1750545041200,-563.88,0.00022999,2]
[366881179,1750545041209,-563.88,0.00022999,2]
[366881180,1750545041219,-460.0,0.00022999,2]
[366881182,1750545041228,-460.0,0.00022999,2]
[366881184,1750545041237,-523.49,0.00022999,2]
[366881185,1750545041247,-571.44,0.00022999,2]
[366881187,1750545041256,-467.61,0.00022999,2]
[366881189,1750545041266,-467.61,0.00022999,2]
[366881191,1750545041275,-467.61,0.00022999,2]
[366881192,1750545041285,-460.0,0.00022999,2]
[366881194,1750545041295,-460.0,0.00022999,2]
[366881196,1750545041304,-430.0,0.00022999,2]
[366881197,1750545041314,-460.0,0.00022999,2]
[366881199,1750545041323,-460.0,0.00022999,2]
[366881201,1750545041332,-220.72,0.00022999,2]
[366881202,1750545041342,-430.0,0.00022999,2]
[366881204,1750545041351,-285.16,0.00022999,2]
[366881206,1750545041361,-460.0,0.00022999,2]
[366881207,1750545041370,-460.0,0.00022999,2]
[366881209,1750545041379,-460.0,0.00022999,2]
[366881211,1750545041388,-460.0,0.00022999,2]
[366881212,1750545041397,-460.0,0.00022999,2]
[366881214,1750545041407,-460.0,0.00022999,2]
[366881216,1750545041416,-460.0,0.00022999,2]
[366881217,1750545041426,-460.0,0.00022999,2]
[366881219,1750545041436,-460.0,0.00022999,2]
[366881221,1750545041445,-460.0,0.00022999,2]
[366881222,1750545041454,-460.0,0.00022999,2]
[366881224,1750545041463,-460.0,0.00022999,2]
[366881226,1750545041472,-460.0,0.00022999,2]
[366881227,1750545041482,-460.0,0.00022999,2]
[366881229,1750545041491,-500.0,0.00022999,2]
[366881231,1750545041501,-500.0,0.00022999,2]
[366881232,1750545041510,-500.0,0.00022999,2]
[366881234,1750545041520,-460.0,0.00022999,2]
[366881236,1750545041529,-460.0,0.00022999,2]
[366881237,1750545041538,-460.0,0.00022999,2]
[366881239,1750545041548,-460.0,0.00022999,2]
[366881241,1750545041558,-460.0,0.00022999,2]
[366881242,1750545041567,-460.0,0.00022999,2]
[366881244,1750545041577,-460.0,0.00022999,2]
[366881246,1750545041586,-398.13,0.00022999,2]
[366881248,1750545041596,-460.0,0.00022999,2]
[366881249,1750545041606,-460.0,0.00023,2]
[366881251,1750545041615,-331.73481834,0.00023,2]
[366881253,1750545041625,-353.4871149,0.00023,2]
[366881254,1750545041634,-468.91932691,0.00023,2]
[366881256,1750545041645,-460.0,0.00023,2]
[366881258,1750545041654,-445.05627745,0.00023,2]
[366881259,1750545041663,-460.0,0.00023,2]
[366881261,1750545041672,-460.0,0.00023,2]
[366881263,1750545041684,-460.0,0.00023,2]
[366881264,1750545041693,-460.0,0.00023,2]
[366881266,1750545041703,-430.0,0.00023,2]
[366881268,1750545041712,-460.0,0.00023,2]
[366881269,1750545041721,-461.44035888,0.00023,2]
[366881271,1750545041730,-409.69484639,0.00023,2]
[366881273,1750545041741,-577.87335953,0.00023,2]
[366881275,1750545041750,-460.0,0.00023,2]
[366881276,1750545041759,-460.0,0.00023,2]
[366881278,1750545041768,-460.0,0.00023,2]
[366881280,1750545041778,-391.03617245,0.00023,2]
[366881281,1750545041787,-460.0,0.00023,2]
[366881283,1750545041796,-440.0,0.00023,2]
[366881285,1750545041805,-460.0,0.00023,2]
[366881286,1750545041814,-460.0,0.00023,2]
[366881288,1750545041824,-460.0,0.00023,2]
[366881290,1750545041833,-460.0,0.00023,2]
[366881291,1750545041843,-463.7718525,0.00023,2]
[366881293,1750545041852,-460.0,0.00023,2]
[366881295,1750545041861,-460.0,0.00023,2]
[366881297,1750545041871,-460.0,0.00023,2]
[366881298,1750545041880,-460.0,0.00023,2]
[366881300,1750545041889,-460.0,0.00023,2]
[366881302,1750545041899,-460.0,0.00023,2]
[366881303,1750545041909,-317.17456677,0.00023,2]
[366881305,1750545041918,-460.0,0.00023,2]
[366881307,1750545041928,-460.0,0.00023,2]
[366881308,1750545041938,-460.0,0.00023,2]
[366881310,1750545041947,-460.0,0.00023,2]
[366881312,1750545041957,-460.0,0.00023,2]
[366881313,1750545041967,-460.0,0.00023,2]
[366881315,1750545041976,-460.0,0.00023,2]
[366881317,1750545041986,-460.0,0.00023,2]
[366881319,1750545041995,-420.0,0.00023,2]
[366881320,1750545042004,-448.29592737,0.00023,2]
[366881322,1750545042013,-470.90437963,0.00023,2]
[366881323,1750545042023,-460.0,0.00023,2]
[366881325,1750545042032,-460.0,0.00023,2]
[366881327,1750545042041,-460.0,0.00023,2]
[366881328,1750545042050,-460.0,0.00023,2]
[366881330,1750545042059,-460.0,0.00023,2]
[366881332,1750545042068,-461.08245331,0.00023,2]
[366881333,1750545042077,-356.4441216,0.00023,2]
[366881335,1750545042087,-519.00092518,0.00023,2]
[366881336,1750545042096,-460.0,0.00023,2]
[366881338,1750545042106,-430.0,0.00023,2]
[366881339,1750545042115,-460.0,0.00023,2]
[366881340,1750545042124,-408.40089247,0.00023,2]
[366881341,1750545042136,-460.0,0.00023,2]
[366881342,1750545042145,-460.0,0.00023,2]
[366881343,1750545042154,-460.0,0.00023,2]
[366881345,1750545042163,-441.42850164,0.00023,2]
[366881346,1750545042174,-572.57179302,0.00023,2]
[366881347,1750545042184,-436.74075257,0.00023,2]
[366881348,1750545042193,-384.7611609,0.00023,2]
[366881349,1750545042203,-371.541449,0.00023,2]
[366881350,1750545042213,-460.0,0.00023,2]
[366881351,1750545042222,-460.0,0.00023,2]
[366881352,1750545042231,-460.0,0.00023,2]
[366881353,1750545042240,-460.0,0.00023,2]
[366881354,1750545042250,-438.53826145,0.00023,2]
[366881355,1750545042260,-541.3776794,0.00023,2]
[366881356,1750545042269,-435.59412053,0.00023,2]
[366881357,1750545042278,-460.0,0.00023,2]
[366881358,1750545042288,-460.0,0.00023,2]
[366881359,1750545042297,-400.0,0.00023,2]
[366881360,1750545042306,-460.0,0.00023,2]
[366881361,1750545042315,-460.0,0.00023,2]
[366881362,1750545042325,-460.0,0.00023,2]
[366881363,1750545042335,-400.0,0.00023,2]
[366881364,1750545042344,-406.55056579,0.00023,2]
[366881365,1750545042353,-460.0,0.00023,2]
[366881366,1750545042362,-460.0,0.00023,2]
[366881367,1750545042371,-460.0,0.00023,2]
[366881368,1750545042380,-456.45879295,0.00023,2]
[366881369,1750545042390,-460.0,0.00023,2]
[366881370,1750545042399,-262.26086521,0.00023,2]
[366881371,1750545042408,-432.7145104,0.00023,2]
[366881372,1750545042417,-326.24,0.00023,2]
[366881373,1750545042426,-460.0,0.00023,2]
[366881374,1750545042435,-430.0,0.00023,2]
[366881375,1750545042445,-513.84,0.00023,2]
[366881376,1750545042455,-513.84,0.00023,2]
[366881377,1750545042464,-460.0,0.00023,2]
[366881378,1750545042473,-460.0,0.00023,2]
[366881379,1750545042483,-460.0,0.00023,2]
[366881380,1750545042493,-460.0,0.00023,2]
[366881381,1750545042502,-460.0,0.00023,2]
[366881382,1750545042511,-460.0,0.00023,2]
[366881383,1750545042521,-460.0,0.00023,2]
[366881384,1750545042532,-460.0,0.00023,2]
[366881385,1750545042541,-563.88,0.00023,2]
[366881386,1750545042550,-563.88,0.00023,2]
[366881387,1750545042560,-460.0,0.00023,2]
[366881388,1750545042569,-636.57,0.00023,2]
[366881389,1750545042579,-523.49,0.00023,2]
[366881390,1750545042590,-467.61,0.00023,2]
[366881391,1750545042602,-467.61,0.00023,2]
[366881392,1750545042614,-433.7936882,0.00023,2]
[366881393,1750545042624,-460.0,0.00023,2]
[366881394,1750545042635,-460.0,0.00023,2]
[366881395,1750545042645,-460.0,0.00023,2]
[366881396,1750545042655,-460.0,0.00023,2]
[366881397,1750545042665,-301.67,0.00023,2]
[366881398,1750545042675,-175.1,0.00023,2]
[366881399,1750545042686,-536.78,0.00023,2]
[366881400,1750545042696,-460.0,0.00023,2]
[366881401,1750545042706,-460.0,0.00023,2]
[366881402,1750545042715,-279.88,0.00023,2]
[366881403,1750545042725,-460.0,0.00023,2]
[366881406,1750545042812,-460.0,0.00023,2]
[366881407,1750545042823,-460.0,0.00023,2]
[366881408,1750545042832,-460.0,0.00023,2]
[366881409,1750545042842,-497.46,0.00023,2]
[366881410,1750545042851,-500.0,0.00023,2]
[366881411,1750545042861,-460.0,0.00023,2]
[366881412,1750545042871,-500.0,0.00023,2]
[366881413,1750545042880,-460.0,0.00023,2]
[366881414,1750545042890,-460.0,0.00023,2]
[366881416,1750545042900,-460.0,0.00023,2]
[366881418,1750545042909,-460.0,0.00023,2]
[366881420,1750545042919,-460.0,0.00023,2]
[366881421,1750545042928,-586.90002318,0.00023,2]
[366881422,1750545042938,-404.62798394,0.00023,2]
[366881423,1750545042948,-460.0,0.00023,2]
[366881424,1750545042957,-350.0,0.00023,2]
[366881425,1750545042967,-569.07,0.00023,2]
[366881426,1750545042976,-344.73148972,0.00023,2]
[366881427,1750545042986,-636.88379875,0.00023001,2]
[366881428,1750545042996,-4499.42433883,0.00023001,2]
[366881429,1750545043005,-500.0,0.00023001,2]
[366881430,1750545043015,-460.0,0.00023001,2]
[366881431,1750545043025,-460.0,0.00023001,2]
[366881432,1750545043034,-470.0,0.00023001,2]
[366881433,1750545043044,-512.57252104,0.00023001,2]
[366881434,1750545043052,-460.0,0.00023001,2]
[366881435,1750545043062,-470.0,0.00023001,2]
[366881436,1750545043071,-460.0,0.00023001,2]
[366881437,1750545043080,-470.0,0.00023001,2]
[366881438,1750545043090,-460.0,0.00023001,2]
[366881439,1750545043099,-470.0,0.00023001,2]
[366881440,1750545043108,-430.0,0.00023001,2]
[366881441,1750545043118,-460.0,0.00023001,2]
[366881442,1750545043131,-460.0,0.00023001,2]
[366881443,1750545043140,-404.27218191,0.00023001,2]
[366881445,1750545043150,-460.0,0.00023001,2]
[366881446,1750545043159,-460.0,0.00023001,2]
[366881448,1750545043169,-460.0,0.00023001,2]
[366881450,1750545043178,-460.0,0.00023001,2]
[366881452,1750545043188,-460.0,0.00023001,2]
[366881454,1750545043198,-460.0,0.00023001,2]
[366881456,1750545043207,-460.0,0.00023001,2]
[366881457,1750545043216,-460.0,0.00023001,2]
[366881458,1750545043226,-587.45302948,0.00023001,2]
[366881459,1750545043235,-460.0,0.00023001,2]
[366881460,1750545043244,-462.10684253,0.00023001,2]
[366881461,1750545043253,-221.01477792,0.00023001,2]
[366881462,1750545043263,-283.21322599,0.00023001,2]
[366881463,1750545043273,-420.0,0.00023001,2]
[366881464,1750545043283,-400.0,0.00023001,2]
[366881465,1750545043294,-460.0,0.00023001,2]
[366881466,1750545043303,-460.0,0.00023001,2]
[366881467,1750545043313,-356.20013899,0.00023001,2]